[Event "Titled Tuesday Blitz June 8 2021"]
[White "Garcia Ramos, Daniel"]
[Black "Yanchenko, Roman"]
[WhiteFideId "32010311"]
[BlackFideId "4137329"]
[WhiteElo "2321"]
[BlackElo "2514"]
[Result "0-1"]
[Round "08"]
[TimeControl "180+1"]
[Date "2021.06.08"]
[WhiteClock "0:01:57"]
[BlackClock "0:01:59"]

1. c4 {[%clk 0:03:00]}  e5 {[%clk 0:02:59]} 2. Nc3 {[%clk 0:03:00]}  Nc6 {[%clk 0:03:00]} 3. Nf3 {[%clk 0:03:01]}  g6 {[%clk 0:03:00]} 4. g3 {[%clk 0:03:01]}  Bg7 {[%clk 0:03:00]} 5. Bg2 {[%clk 0:03:01]}  d6 {[%clk 0:03:01]} 6. O-O {[%clk 0:03:02]}  f5 {[%clk 0:03:01]} 7. Ne1 {[%clk 0:03:00]}  Nf6 {[%clk 0:03:02]} 8. Nc2 {[%clk 0:03:00]}  O-O {[%clk 0:03:02]} 9. d4 {[%clk 0:02:59]}  exd4 {[%clk 0:03:02]} 10. Nxd4 {[%clk 0:02:58]}  Qe8 {[%clk 0:02:55]} 11. Ndb5 {[%clk 0:02:54]}  Rf7 {[%clk 0:02:54]} 12. Nd5 {[%clk 0:02:53]}  Nxd5 {[%clk 0:02:53]} 13. cxd5 {[%clk 0:02:52]}  Ne5 {[%clk 0:02:53]} 14. Bf4 {[%clk 0:02:51]}  Qxb5 {[%clk 0:02:53]} 15. a4 {[%clk 0:02:50]}  Qe8 {[%clk 0:02:51]} 16. Rc1 {[%clk 0:02:50]}  b6 {[%clk 0:02:32]} 17. Qb3 {[%clk 0:02:49]}  Ba6 {[%clk 0:02:29]} 18. Rc2 {[%clk 0:02:48]}  Nd7 {[%clk 0:02:25]} 19. Qa3 {[%clk 0:02:40]}  Rc8 {[%clk 0:02:21]} 20. Rfc1 {[%clk 0:02:39]}  Bb7 {[%clk 0:02:17]} 21. Rxc7 {[%clk 0:02:36]}  Rxc7 {[%clk 0:02:08]} 22. Rxc7 {[%clk 0:02:37]}  Nc5 {[%clk 0:02:08]} 23. Rxf7 {[%clk 0:02:28]}  Qxf7 {[%clk 0:02:09]} 24. Bxd6 {[%clk 0:02:29]}  Bxd5 {[%clk 0:02:08]} 25. Bxc5 {[%clk 0:02:12]}  Bxg2 {[%clk 0:02:08]} 26. Bxb6 {[%clk 0:02:12]}  Bh3 {[%clk 0:02:02]} 27. Be3 {[%clk 0:02:07]}  Qd5 {[%clk 0:01:59]} 28. f3 {[%clk 0:01:57]}  Qd1+ {[%clk 0:01:59]} 0-1


[Site "https://www.chess.com"]

[Event "Titled Tuesday Blitz June 8 2021"]
[White "Guo, Arthur"]
[Black "Senthil Maran K"]
[WhiteFideId "30903114"]
[BlackFideId "25035681"]
[WhiteElo "2810"]
[BlackElo "2194"]
[Result "0-1"]
[Round "08"]
[TimeControl "180+1"]
[Date "2021.06.08"]
[WhiteClock "0:00:11"]
[BlackClock "0:00:16"]

1. e4 {[%clk 0:03:00]}  c6 {[%clk 0:02:58]} 2. Nf3 {[%clk 0:03:01]}  d5 {[%clk 0:02:58]} 3. Nc3 {[%clk 0:03:01]}  dxe4 {[%clk 0:02:57]} 4. Nxe4 {[%clk 0:03:02]}  Nf6 {[%clk 0:02:58]} 5. Qe2 {[%clk 0:03:03]}  Nxe4 {[%clk 0:02:58]} 6. Qxe4 {[%clk 0:03:04]}  Nd7 {[%clk 0:02:58]} 7. Bc4 {[%clk 0:03:04]}  Nf6 {[%clk 0:02:59]} 8. Ne5 {[%clk 0:03:05]}  e6 {[%clk 0:02:59]} 9. Qe2 {[%clk 0:03:05]}  b5 {[%clk 0:03:00]} 10. Bd3 {[%clk 0:03:06]}  Bb7 {[%clk 0:02:57]} 11. b3 {[%clk 0:03:06]}  a6 {[%clk 0:02:56]} 12. Bb2 {[%clk 0:03:06]}  Qc7 {[%clk 0:02:56]} 13. O-O {[%clk 0:03:06]}  Bd6 {[%clk 0:02:56]} 14. f4 {[%clk 0:03:06]}  O-O {[%clk 0:02:55]} 15. Rf3 {[%clk 0:03:07]}  c5 {[%clk 0:02:43]} 16. Rh3 {[%clk 0:03:05]}  Rfd8 {[%clk 0:02:34]} 17. Bxh7+ {[%clk 0:02:55]}  Kf8 {[%clk 0:02:13]} 18. Bd3 {[%clk 0:02:43]}  Rac8 {[%clk 0:02:07]} 19. Re1 {[%clk 0:02:41]}  c4 {[%clk 0:02:03]} 20. Rh8+ {[%clk 0:01:58]}  Ke7 {[%clk 0:02:00]} 21. Rxd8 {[%clk 0:01:36]}  Qxd8 {[%clk 0:01:30]} 22. Bg6 {[%clk 0:01:20]}  fxg6 {[%clk 0:01:03]} 23. Nxg6+ {[%clk 0:01:09]}  Kf7 {[%clk 0:01:01]} 24. Ne5+ {[%clk 0:01:01]}  Kg8 {[%clk 0:00:57]} 25. bxc4 {[%clk 0:00:55]}  bxc4 {[%clk 0:00:56]} 26. Nxc4 {[%clk 0:00:55]}  Bc5+ {[%clk 0:00:28]} 27. Kh1 {[%clk 0:00:51]}  Qd5 {[%clk 0:00:27]} 28. Bxf6 {[%clk 0:00:49]}  gxf6 {[%clk 0:00:28]} 29. Qg4+ {[%clk 0:00:47]}  Kf7 {[%clk 0:00:28]} 30. Qh3 {[%clk 0:00:31]}  Rg8 {[%clk 0:00:26]} 31. Ne5+ {[%clk 0:00:23]}  fxe5 {[%clk 0:00:24]} 32. Qh5+ {[%clk 0:00:21]}  Rg6 {[%clk 0:00:23]} 33. Qh7+ {[%clk 0:00:21]}  Rg7 {[%clk 0:00:23]} 34. Qh5+ {[%clk 0:00:21]}  Ke7 {[%clk 0:00:16]} 35. Qh4+ {[%clk 0:00:11]}  Kd7 {[%clk 0:00:16]} 0-1


[Site "https://www.chess.com"]

[Event "Titled Tuesday Blitz June 8 2021"]
[White "Harshavardhan G B"]
[Black "Salinas Herrera, Pablo"]
[WhiteFideId "25059009"]
[BlackFideId "3407128"]
[WhiteElo "1825"]
[BlackElo "2541"]
[Result "0-1"]
[Round "08"]
[TimeControl "180+1"]
[Date "2021.06.08"]
[WhiteClock "0:00:01"]
[BlackClock "0:00:12"]

1. d4 {[%clk 0:03:00]}  d5 {[%clk 0:02:59]} 2. c4 {[%clk 0:03:00]}  e6 {[%clk 0:03:00]} 3. Nc3 {[%clk 0:02:59]}  Nf6 {[%clk 0:03:00]} 4. Nf3 {[%clk 0:02:58]}  c6 {[%clk 0:02:59]} 5. Bg5 {[%clk 0:02:55]}  Nbd7 {[%clk 0:03:00]} 6. e3 {[%clk 0:02:55]}  Qa5 {[%clk 0:03:00]} 7. cxd5 {[%clk 0:02:54]}  Nxd5 {[%clk 0:03:01]} 8. Qd2 {[%clk 0:02:53]}  Bb4 {[%clk 0:02:59]} 9. Rc1 {[%clk 0:02:53]}  b6 {[%clk 0:02:56]} 10. Bd3 {[%clk 0:02:45]}  h6 {[%clk 0:02:55]} 11. Bh4 {[%clk 0:02:44]}  Nxc3 {[%clk 0:02:55]} 12. bxc3 {[%clk 0:02:43]}  Ba3 {[%clk 0:02:56]} 13. Rb1 {[%clk 0:02:42]}  Ba6 {[%clk 0:02:56]} 14. O-O {[%clk 0:02:35]}  O-O {[%clk 0:02:54]} 15. Rb3 {[%clk 0:02:25]}  Rfe8 {[%clk 0:02:45]} 16. e4 {[%clk 0:02:19]}  Rac8 {[%clk 0:02:33]} 17. e5 {[%clk 0:01:22]}  c5 {[%clk 0:02:19]} 18. c4 {[%clk 0:01:18]}  Qa4 {[%clk 0:01:55]} 19. Bb1 {[%clk 0:00:45]}  Bb4 {[%clk 0:01:50]} 20. Qc2 {[%clk 0:00:43]}  Nf8 {[%clk 0:01:49]} 21. d5 {[%clk 0:00:14]}  exd5 {[%clk 0:01:44]} 22. cxd5 {[%clk 0:00:15]}  Bxf1 {[%clk 0:01:44]} 23. Kxf1 {[%clk 0:00:16]}  c4 {[%clk 0:01:43]} 24. Re3 {[%clk 0:00:16]}  Qxc2 {[%clk 0:01:42]} 25. Bxc2 {[%clk 0:00:17]}  Bc5 {[%clk 0:01:42]} 26. Re4 {[%clk 0:00:16]}  b5 {[%clk 0:01:43]} 27. d6 {[%clk 0:00:14]}  g6 {[%clk 0:01:20]} 28. Nd2 {[%clk 0:00:10]}  Nd7 {[%clk 0:01:17]} 29. f4 {[%clk 0:00:09]}  Bb4 {[%clk 0:01:16]} 30. Nf3 {[%clk 0:00:08]}  a6 {[%clk 0:01:12]} 31. g4 {[%clk 0:00:08]}  Ba5 {[%clk 0:01:06]} 32. f5 {[%clk 0:00:08]}  g5 {[%clk 0:01:07]} 33. Bg3 {[%clk 0:00:08]}  Rcd8 {[%clk 0:01:03]} 34. e6 {[%clk 0:00:07]}  fxe6 {[%clk 0:01:01]} 35. fxe6 {[%clk 0:00:08]}  Nc5 {[%clk 0:01:02]} 36. Re2 {[%clk 0:00:07]}  Rxe6 {[%clk 0:01:01]} 37. Nd4 {[%clk 0:00:04]}  Rxe2 {[%clk 0:01:00]} 38. Kxe2 {[%clk 0:00:05]}  Re8+ {[%clk 0:00:58]} 39. Kf3 {[%clk 0:00:05]}  Kf7 {[%clk 0:00:50]} 40. Nc6 {[%clk 0:00:05]}  Bd8 {[%clk 0:00:27]} 41. Bf5 {[%clk 0:00:04]}  Bf6 {[%clk 0:00:24]} 42. d7 {[%clk 0:00:03]}  Ra8 {[%clk 0:00:14]} 43. Bd6 {[%clk 0:00:01]}  Ne6 {[%clk 0:00:12]} 0-1


[Site "https://www.chess.com"]

[Event "Titled Tuesday Blitz June 8 2021"]
[White "Harutjunyan, Gevorg"]
[Black "Perez Rodriguez, Luis Manuel"]
[WhiteFideId "13300873"]
[BlackFideId "3503364"]
[WhiteElo "2498"]
[BlackElo "2429"]
[Result "1-0"]
[Round "08"]
[TimeControl "180+1"]
[Date "2021.06.08"]
[WhiteClock "0:00:17"]
[BlackClock "0:00:14"]

1. e4 {[%clk 0:03:00]}  e5 {[%clk 0:02:59]} 2. Nf3 {[%clk 0:03:00]}  Nc6 {[%clk 0:02:59]} 3. d4 {[%clk 0:03:01]}  exd4 {[%clk 0:02:59]} 4. Nxd4 {[%clk 0:03:02]}  Nf6 {[%clk 0:02:59]} 5. Nc3 {[%clk 0:03:02]}  Bb4 {[%clk 0:02:57]} 6. Nxc6 {[%clk 0:03:02]}  bxc6 {[%clk 0:02:58]} 7. Bd3 {[%clk 0:03:02]}  d5 {[%clk 0:02:58]} 8. exd5 {[%clk 0:03:02]}  O-O {[%clk 0:02:59]} 9. O-O {[%clk 0:03:01]}  Bg4 {[%clk 0:02:59]} 10. f3 {[%clk 0:02:56]}  Bh5 {[%clk 0:02:59]} 11. dxc6 {[%clk 0:02:56]}  Qd4+ {[%clk 0:03:00]} 12. Kh1 {[%clk 0:02:55]}  Bxc3 {[%clk 0:03:01]} 13. bxc3 {[%clk 0:02:55]}  Qxc3 {[%clk 0:03:02]} 14. Rb1 {[%clk 0:02:48]}  Bg6 {[%clk 0:02:56]} 15. Bd2 {[%clk 0:02:10]}  Qxc6 {[%clk 0:02:51]} 16. Bb5 {[%clk 0:02:09]}  Qxc2 {[%clk 0:01:56]} 17. Qxc2 {[%clk 0:02:07]}  Bxc2 {[%clk 0:01:57]} 18. Rbc1 {[%clk 0:02:07]}  Rab8 {[%clk 0:01:57]} 19. Rxc2 {[%clk 0:01:31]}  Rxb5 {[%clk 0:01:56]} 20. Rxc7 {[%clk 0:01:32]}  Rb2 {[%clk 0:01:53]} 21. Bg5 {[%clk 0:01:10]}  Rxa2 {[%clk 0:01:48]} 22. Bxf6 {[%clk 0:01:10]}  gxf6 {[%clk 0:01:48]} 23. Rfc1 {[%clk 0:00:49]}  Rd8 {[%clk 0:01:25]} 24. Rc8 {[%clk 0:00:46]}  Rxc8 {[%clk 0:01:25]} 25. Rxc8+ {[%clk 0:00:47]}  Kg7 {[%clk 0:01:26]} 26. h3 {[%clk 0:00:43]}  a5 {[%clk 0:01:21]} 27. Rc6 {[%clk 0:00:39]}  Kg6 {[%clk 0:01:15]} 28. Rc5 {[%clk 0:00:37]}  f5 {[%clk 0:01:07]} 29. Kh2 {[%clk 0:00:31]}  f4 {[%clk 0:01:02]} 30. h4 {[%clk 0:00:28]}  a4 {[%clk 0:00:54]} 31. Kh3 {[%clk 0:00:28]}  h5 {[%clk 0:00:52]} 32. Rg5+ {[%clk 0:00:27]}  Kf6 {[%clk 0:00:45]} 33. Rxh5 {[%clk 0:00:27]}  a3 {[%clk 0:00:44]} 34. Ra5 {[%clk 0:00:27]}  Kg6 {[%clk 0:00:41]} 35. Ra6+ {[%clk 0:00:21]}  f6 {[%clk 0:00:40]} 36. Ra4 {[%clk 0:00:21]}  Kh6 {[%clk 0:00:40]} 37. Rxf4 {[%clk 0:00:20]}  Kg7 {[%clk 0:00:34]} 38. Ra4 {[%clk 0:00:20]}  Ra1 {[%clk 0:00:34]} 39. g4 {[%clk 0:00:20]}  a2 {[%clk 0:00:34]} 40. Kg2 {[%clk 0:00:21]}  Kg6 {[%clk 0:00:33]} 41. Ra5 {[%clk 0:00:20]}  Kh6 {[%clk 0:00:33]} 42. h5 {[%clk 0:00:21]}  Kg7 {[%clk 0:00:32]} 43. f4 {[%clk 0:00:21]}  Kh7 {[%clk 0:00:31]} 44. Ra7+ {[%clk 0:00:21]}  Kh6 {[%clk 0:00:31]} 45. Ra6 {[%clk 0:00:21]}  Kg7 {[%clk 0:00:31]} 46. g5 {[%clk 0:00:22]}  fxg5 {[%clk 0:00:32]} 47. fxg5 {[%clk 0:00:23]}  Kh7 {[%clk 0:00:32]} 48. Ra7+ {[%clk 0:00:23]}  Kg8 {[%clk 0:00:31]} 49. g6 {[%clk 0:00:24]}  Rd1 {[%clk 0:00:21]} 50. Rxa2 {[%clk 0:00:21]}  Rd5 {[%clk 0:00:21]} 51. Ra8+ {[%clk 0:00:19]}  Kg7 {[%clk 0:00:20]} 52. Ra7+ {[%clk 0:00:20]}  Kf6 {[%clk 0:00:15]} 53. Rf7+ {[%clk 0:00:18]}  Kg5 {[%clk 0:00:14]} 54. g7 {[%clk 0:00:17]} 1-0


[Site "https://www.chess.com"]

[Event "Titled Tuesday Blitz June 8 2021"]
[White "Hebden, Mark L"]
[Black "Hoffmann, Asa"]
[WhiteFideId "400084"]
[BlackFideId "2001470"]
[WhiteElo "2457"]
[BlackElo "2117"]
[Result "1-0"]
[Round "08"]
[TimeControl "180+1"]
[Date "2021.06.08"]
[WhiteClock "0:01:46"]
[BlackClock "0:01:07"]

1. d4 {[%clk 0:03:00]}  Nf6 {[%clk 0:02:58]} 2. Nf3 {[%clk 0:03:00]}  d6 {[%clk 0:02:57]} 3. Nc3 {[%clk 0:02:59]}  c6 {[%clk 0:02:56]} 4. e4 {[%clk 0:02:58]}  Bg4 {[%clk 0:02:55]} 5. h3 {[%clk 0:02:58]}  Bh5 {[%clk 0:02:55]} 6. g4 {[%clk 0:02:57]}  Bg6 {[%clk 0:02:55]} 7. Qe2 {[%clk 0:02:57]}  e6 {[%clk 0:02:55]} 8. h4 {[%clk 0:02:56]}  h6 {[%clk 0:02:50]} 9. h5 {[%clk 0:02:55]}  Bh7 {[%clk 0:02:50]} 10. g5 {[%clk 0:02:54]}  hxg5 {[%clk 0:02:47]} 11. Nxg5 {[%clk 0:02:52]}  Bg8 {[%clk 0:02:46]} 12. f4 {[%clk 0:02:48]}  Be7 {[%clk 0:02:45]} 13. Be3 {[%clk 0:02:46]}  Nbd7 {[%clk 0:02:41]} 14. O-O-O {[%clk 0:02:44]}  Qa5 {[%clk 0:02:34]} 15. Kb1 {[%clk 0:02:42]}  b5 {[%clk 0:02:28]} 16. e5 {[%clk 0:02:40]}  b4 {[%clk 0:02:18]} 17. exf6 {[%clk 0:02:27]}  gxf6 {[%clk 0:02:17]} 18. Nce4 {[%clk 0:02:20]}  fxg5 {[%clk 0:02:16]} 19. fxg5 {[%clk 0:02:19]}  d5 {[%clk 0:02:10]} 20. Nc5 {[%clk 0:02:13]}  Nxc5 {[%clk 0:02:07]} 21. dxc5 {[%clk 0:02:12]}  Bxc5 {[%clk 0:02:05]} 22. Bxc5 {[%clk 0:02:12]}  Qxc5 {[%clk 0:02:05]} 23. Qe5 {[%clk 0:02:12]}  f6 {[%clk 0:01:36]} 24. Qxf6 {[%clk 0:02:10]}  Rh7 {[%clk 0:01:36]} 25. g6 {[%clk 0:02:08]}  Re7 {[%clk 0:01:29]} 26. h6 {[%clk 0:02:05]}  O-O-O {[%clk 0:01:23]} 27. h7 {[%clk 0:02:04]}  Ree8 {[%clk 0:01:13]} 28. h8=Q {[%clk 0:01:59]}  e5 {[%clk 0:01:10]} 29. Ba6+ {[%clk 0:01:51]}  Kb8 {[%clk 0:01:08]} 30. Qxd8+ {[%clk 0:01:46]}  Rxd8 {[%clk 0:01:07]} 31. Qxe5+ {[%clk 0:01:46]} 1-0


[Site "https://www.chess.com"]

[Event "Titled Tuesday Blitz June 8 2021"]
[White "Indjic, Aleksandar"]
[Black "Novik, Maxim"]
[WhiteFideId "911925"]
[BlackFideId "4102924"]
[WhiteElo "2643"]
[BlackElo "2406"]
[Result "1-0"]
[Round "08"]
[TimeControl "180+1"]
[Date "2021.06.08"]
[WhiteClock "0:00:21"]
[BlackClock "0:00:01"]

1. d4 {[%clk 0:03:00]}  Nf6 {[%clk 0:02:54]} 2. Nf3 {[%clk 0:03:01]}  g6 {[%clk 0:02:54]} 3. Bg5 {[%clk 0:03:01]}  Bg7 {[%clk 0:02:54]} 4. Nbd2 {[%clk 0:03:01]}  O-O {[%clk 0:02:53]} 5. c3 {[%clk 0:03:02]}  d5 {[%clk 0:02:48]} 6. e3 {[%clk 0:03:02]}  Nbd7 {[%clk 0:02:45]} 7. h4 {[%clk 0:03:02]}  h6 {[%clk 0:02:41]} 8. Bf4 {[%clk 0:03:02]}  Re8 {[%clk 0:02:36]} 9. Ne5 {[%clk 0:03:02]}  Nxe5 {[%clk 0:02:32]} 10. Bxe5 {[%clk 0:03:02]}  Nd7 {[%clk 0:02:24]} 11. Bxg7 {[%clk 0:03:02]}  Kxg7 {[%clk 0:02:24]} 12. f4 {[%clk 0:03:02]}  Nf6 {[%clk 0:02:17]} 13. Bd3 {[%clk 0:02:59]}  Bg4 {[%clk 0:02:15]} 14. Qc2 {[%clk 0:02:54]}  c5 {[%clk 0:02:14]} 15. Kf2 {[%clk 0:02:52]}  Rc8 {[%clk 0:02:12]} 16. Be2 {[%clk 0:02:42]}  Qd6 {[%clk 0:02:05]} 17. g3 {[%clk 0:02:38]}  b5 {[%clk 0:01:56]} 18. Bxb5 {[%clk 0:02:30]}  cxd4 {[%clk 0:01:53]} 19. exd4 {[%clk 0:02:28]}  Qb6 {[%clk 0:01:53]} 20. Bxe8 {[%clk 0:02:27]}  Nxe8 {[%clk 0:01:39]} 21. Rac1 {[%clk 0:02:19]}  Nd6 {[%clk 0:01:38]} 22. Rhe1 {[%clk 0:02:17]}  e6 {[%clk 0:01:38]} 23. Nb3 {[%clk 0:02:03]}  Ne4+ {[%clk 0:01:31]} 24. Rxe4 {[%clk 0:02:00]}  Bf5 {[%clk 0:01:20]} 25. Rxe6 {[%clk 0:01:59]}  Qxe6 {[%clk 0:01:13]} 26. Qe2 {[%clk 0:01:59]}  Be4 {[%clk 0:00:37]} 27. Nc5 {[%clk 0:01:58]}  Qh3 {[%clk 0:00:34]} 28. Nxe4 {[%clk 0:01:58]}  Re8 {[%clk 0:00:27]} 29. Qf1 {[%clk 0:01:57]}  Qe6 {[%clk 0:00:17]} 30. Re1 {[%clk 0:01:12]}  dxe4 {[%clk 0:00:17]} 31. Ke3 {[%clk 0:00:57]}  Qxa2 {[%clk 0:00:16]} 32. Qf2 {[%clk 0:00:52]}  Qc4 {[%clk 0:00:15]} 33. Qe2 {[%clk 0:00:50]}  Qa2 {[%clk 0:00:14]} 34. Qd2 {[%clk 0:00:45]}  Rb8 {[%clk 0:00:13]} 35. b4 {[%clk 0:00:43]}  Qd5 {[%clk 0:00:12]} 36. Ra1 {[%clk 0:00:41]}  Rc8 {[%clk 0:00:11]} 37. Ra5 {[%clk 0:00:39]}  Qe6 {[%clk 0:00:10]} 38. Rc5 {[%clk 0:00:37]}  Rd8 {[%clk 0:00:07]} 39. f5 {[%clk 0:00:28]}  gxf5 {[%clk 0:00:07]} 40. Qf2 {[%clk 0:00:29]}  Kg6 {[%clk 0:00:06]} 41. h5+ {[%clk 0:00:27]}  Kf6 {[%clk 0:00:04]} 42. g4 {[%clk 0:00:27]}  Kg7 {[%clk 0:00:03]} 43. Qxf5 {[%clk 0:00:26]}  Qa2 {[%clk 0:00:01]} 44. Qe5+ {[%clk 0:00:25]}  Kg8 {[%clk 0:00:01]} 45. Qf6 {[%clk 0:00:22]}  Rf8 {[%clk 0:00:01]} 46. Qxh6 {[%clk 0:00:22]}  Qc2 {[%clk 0:00:01]} 47. Rg5# {[%clk 0:00:21]} 1-0


[Site "https://www.chess.com"]

[Event "Titled Tuesday Blitz June 8 2021"]
[White "Iskusnyh, Sergei"]
[Black "Hambleton, Aman"]
[WhiteFideId "4120027"]
[BlackFideId "2606577"]
[WhiteElo "2492"]
[BlackElo "2552"]
[Result "1-0"]
[Round "08"]
[TimeControl "180+1"]
[Date "2021.06.08"]
[WhiteClock "0:01:25"]
[BlackClock "0:00:01"]

1. d4 {[%clk 0:03:00]}  e5 {[%clk 0:02:57]} 2. dxe5 {[%clk 0:02:58]}  Nc6 {[%clk 0:02:57]} 3. Nf3 {[%clk 0:02:54]}  Qe7 {[%clk 0:02:57]} 4. Nc3 {[%clk 0:02:53]}  Nxe5 {[%clk 0:02:57]} 5. Bf4 {[%clk 0:02:52]}  Nxf3+ {[%clk 0:02:29]} 6. gxf3 {[%clk 0:02:51]}  d6 {[%clk 0:02:30]} 7. Qd2 {[%clk 0:02:48]}  Nf6 {[%clk 0:02:29]} 8. O-O-O {[%clk 0:02:46]}  Be6 {[%clk 0:02:27]} 9. e4 {[%clk 0:02:44]}  a6 {[%clk 0:01:12]} 10. Nd5 {[%clk 0:02:20]}  Bxd5 {[%clk 0:00:34]} 11. exd5 {[%clk 0:02:20]}  O-O-O {[%clk 0:00:35]} 12. Bh3+ {[%clk 0:01:51]}  Nd7 {[%clk 0:00:34]} 13. Rhe1 {[%clk 0:01:50]}  Qh4 {[%clk 0:00:34]} 14. Bxd7+ {[%clk 0:01:46]}  Kxd7 {[%clk 0:00:14]} 15. Bg5 {[%clk 0:01:46]}  Qh5 {[%clk 0:00:03]} 16. Bxd8 {[%clk 0:01:36]}  Kxd8 {[%clk 0:00:04]} 17. Qe3 {[%clk 0:01:36]}  Qh6 {[%clk 0:00:03]} 18. f4 {[%clk 0:01:36]}  c5 {[%clk 0:00:01]} 19. dxc6 {[%clk 0:01:35]}  bxc6 {[%clk 0:00:01]} 20. Qb6+ {[%clk 0:01:34]}  Kd7 {[%clk 0:00:01]} 21. Qb7+ {[%clk 0:01:34]}  Kd8 {[%clk 0:00:01]} 22. Qxc6 {[%clk 0:01:30]}  Qxf4+ {[%clk 0:00:01]} 23. Kb1 {[%clk 0:01:30]}  g5 {[%clk 0:00:01]} 24. Re8# {[%clk 0:01:25]} 1-0


[Site "https://www.chess.com"]

[Event "Titled Tuesday Blitz June 8 2021"]
[White "Jakubowski, Krzysztof"]
[Black "Dang, Hoang Son"]
[WhiteFideId "1112848"]
[BlackFideId "12402435"]
[WhiteElo "2462"]
[BlackElo "2248"]
[Result "0-1"]
[Round "08"]
[TimeControl "180+1"]
[Date "2021.06.08"]
[WhiteClock "0:00:19"]
[BlackClock "0:01:45"]

1. e4 {[%clk 0:00:48]}  g6 {[%clk 0:02:59]} 2. d4 {[%clk 0:00:48]}  Bg7 {[%clk 0:02:59]} 3. Nc3 {[%clk 0:00:48]}  a6 {[%clk 0:02:59]} 4. f4 {[%clk 0:00:48]}  d5 {[%clk 0:02:59]} 5. e5 {[%clk 0:00:47]}  Nh6 {[%clk 0:02:59]} 6. h3 {[%clk 0:00:47]}  Nf5 {[%clk 0:02:58]} 7. Nge2 {[%clk 0:00:46]}  h5 {[%clk 0:02:58]} 8. g3 {[%clk 0:00:46]}  e6 {[%clk 0:02:56]} 9. a3 {[%clk 0:00:46]}  c5 {[%clk 0:02:55]} 10. dxc5 {[%clk 0:00:46]}  Nc6 {[%clk 0:02:48]} 11. b4 {[%clk 0:00:45]}  f6 {[%clk 0:02:45]} 12. exf6 {[%clk 0:00:44]}  Bxf6 {[%clk 0:02:46]} 13. Rb1 {[%clk 0:00:44]}  O-O {[%clk 0:02:41]} 14. Na4 {[%clk 0:00:44]}  e5 {[%clk 0:02:39]} 15. Nb6 {[%clk 0:00:39]}  Be6 {[%clk 0:02:38]} 16. Nxa8 {[%clk 0:00:38]}  Qxa8 {[%clk 0:02:39]} 17. g4 {[%clk 0:00:37]}  Bh4+ {[%clk 0:02:38]} 18. Kd2 {[%clk 0:00:37]}  Nfd4 {[%clk 0:02:38]} 19. Nxd4 {[%clk 0:00:37]}  Nxd4 {[%clk 0:02:39]} 20. c3 {[%clk 0:00:37]}  Rxf4 {[%clk 0:02:34]} 21. Rh2 {[%clk 0:00:26]}  Qf8 {[%clk 0:02:26]} 22. cxd4 {[%clk 0:00:23]}  Rxf1 {[%clk 0:02:24]} 23. Qc2 {[%clk 0:00:21]}  Qf4+ {[%clk 0:01:53]} 24. Kc3 {[%clk 0:00:20]}  Qxd4+ {[%clk 0:01:50]} 25. Kb3 {[%clk 0:00:20]}  Rf3+ {[%clk 0:01:47]} 26. Ka4 {[%clk 0:00:19]}  Bd7+ {[%clk 0:01:44]} 27. Ka5 {[%clk 0:00:19]}  Bd8# {[%clk 0:01:45]} 0-1


[Site "https://www.chess.com"]

[Event "Titled Tuesday Blitz June 8 2021"]
[White "Jarovinsky, Alexey"]
[Black "Grieve, Harry"]
[WhiteFideId "14115131"]
[BlackFideId "426520"]
[WhiteElo "2446"]
[BlackElo "2191"]
[Result "0-1"]
[Round "08"]
[TimeControl "180+1"]
[Date "2021.06.08"]
[WhiteClock "0:00:01"]
[BlackClock "0:00:24"]

1. Nc3 {[%clk 0:03:00]}  c5 {[%clk 0:02:58]} 2. e4 {[%clk 0:03:00]}  e6 {[%clk 0:02:58]} 3. g3 {[%clk 0:02:57]}  d5 {[%clk 0:02:57]} 4. Bg2 {[%clk 0:02:56]}  Nf6 {[%clk 0:02:54]} 5. d3 {[%clk 0:02:54]}  Nc6 {[%clk 0:02:53]} 6. Bg5 {[%clk 0:02:47]}  Be7 {[%clk 0:02:38]} 7. Bxf6 {[%clk 0:02:44]}  Bxf6 {[%clk 0:02:39]} 8. exd5 {[%clk 0:02:43]}  exd5 {[%clk 0:02:36]} 9. Nge2 {[%clk 0:02:40]}  Be6 {[%clk 0:02:23]} 10. O-O {[%clk 0:02:37]}  O-O {[%clk 0:02:14]} 11. Nf4 {[%clk 0:02:36]}  d4 {[%clk 0:01:56]} 12. Nxe6 {[%clk 0:02:15]}  fxe6 {[%clk 0:01:57]} 13. Ne4 {[%clk 0:02:14]}  Be7 {[%clk 0:01:46]} 14. Qg4 {[%clk 0:02:08]}  Qd7 {[%clk 0:01:41]} 15. a3 {[%clk 0:01:42]}  Rae8 {[%clk 0:01:40]} 16. Rae1 {[%clk 0:01:40]}  b6 {[%clk 0:01:23]} 17. f4 {[%clk 0:01:35]}  Bd8 {[%clk 0:01:19]} 18. h4 {[%clk 0:01:22]}  Ne7 {[%clk 0:01:18]} 19. Ng5 {[%clk 0:00:45]}  Nf5 {[%clk 0:01:18]} 20. Qf3 {[%clk 0:00:19]}  h6 {[%clk 0:01:14]} 21. Ne4 {[%clk 0:00:16]}  Bc7 {[%clk 0:01:13]} 22. Bh3 {[%clk 0:00:12]}  Ne3 {[%clk 0:01:11]} 23. Rxe3 {[%clk 0:00:11]}  dxe3 {[%clk 0:01:10]} 24. Qxe3 {[%clk 0:00:12]}  Qd5 {[%clk 0:01:01]} 25. c4 {[%clk 0:00:09]}  Qh5 {[%clk 0:00:53]} 26. Qf3 {[%clk 0:00:08]}  Qf7 {[%clk 0:00:53]} 27. Qg4 {[%clk 0:00:06]}  Kh8 {[%clk 0:00:49]} 28. h5 {[%clk 0:00:06]}  Qd7 {[%clk 0:00:40]} 29. Rf3 {[%clk 0:00:05]}  Qd4+ {[%clk 0:00:40]} 30. Kg2 {[%clk 0:00:04]}  Qxb2+ {[%clk 0:00:40]} 31. Nf2 {[%clk 0:00:02]}  Qf6 {[%clk 0:00:38]} 32. Qg6 {[%clk 0:00:02]}  Qd4 {[%clk 0:00:26]} 33. Qe4 {[%clk 0:00:01]}  Qd6 {[%clk 0:00:25]} 34. Qg6 {[%clk 0:00:01]}  Re7 {[%clk 0:00:24]} 0-1


[Site "https://www.chess.com"]